[Event "*** SCC Grand Prix: Titled Tuesday Blitz"]
[Site "Chess.com"]
[Date "2020.07.14"]
[Round "2"]
[White "CzechmVIII"]
[Black "Raffaello123"]
[Result "1-0"]
[WhiteElo "2192"]
[BlackElo "2353"]
[TimeControl "180+1"]
[EndTime "10:16:35 PDT"]
[Termination "CzechmVIII won by resignation"]

1. e4 {[%clk 0:03:00.9]} 1... e5 {[%clk 0:02:59.9]} 2. Nf3 {[%clk 0:03:00.9]}
2... Nc6 {[%clk 0:03:00.4]} 3. Bb5 {[%clk 0:03:00.8]} 3... a6 {[%clk 0:03:00.3]}
4. Ba4 {[%clk 0:03:01]} 4... Nf6 {[%clk 0:02:59.8]} 5. O-O {[%clk 0:03:01.2]}
5... Be7 {[%clk 0:03:00.3]} 6. Re1 {[%clk 0:03:00.7]} 6... b5 {[%clk 0:03:00.7]}
7. Bb3 {[%clk 0:03:00.9]} 7... O-O {[%clk 0:03:01.6]} 8. d3 {[%clk 0:03:00.2]}
8... d6 {[%clk 0:02:57.2]} 9. a3 {[%clk 0:02:56.6]} 9... Na5 {[%clk 0:02:56.5]}
10. Ba2 {[%clk 0:02:56.5]} 10... c5 {[%clk 0:02:57.1]} 11. Nc3 {[%clk
0:02:47.2]} 11... Be6 {[%clk 0:02:55.9]} 12. Ne2 {[%clk 0:02:40.5]} 12... Bxa2
{[%clk 0:02:55.1]} 13. Rxa2 {[%clk 0:02:40.4]} 13... Nc6 {[%clk 0:02:55.8]} 14.
c3 {[%clk 0:02:38.3]} 14... d5 {[%clk 0:02:55.7]} 15. Ng3 {[%clk 0:02:34.3]}
15... dxe4 {[%clk 0:02:45.9]} 16. dxe4 {[%clk 0:02:33.1]} 16... Qxd1 {[%clk
0:02:45.3]} 17. Rxd1 {[%clk 0:02:33.5]} 17... Rfd8 {[%clk 0:02:45.5]} 18. Re1
{[%clk 0:02:23.4]} 18... Rd3 {[%clk 0:02:16.5]} 19. Ra1 {[%clk 0:02:09.8]} 19...
Rad8 {[%clk 0:02:16]} 20. Nf5 {[%clk 0:02:05.1]} 20... Bf8 {[%clk 0:02:14.3]}
21. Bg5 {[%clk 0:02:04.8]} 21... R8d7 {[%clk 0:01:53.2]} 22. Bxf6 {[%clk
0:01:57.2]} 22... gxf6 {[%clk 0:01:54.1]} 23. Kf1 {[%clk 0:01:39.5]} 23... Na5
{[%clk 0:01:53.8]} 24. Ne3 {[%clk 0:01:25.3]} 24... Bh6 {[%clk 0:01:43.9]} 25.
Nd5 {[%clk 0:01:23.8]} 25... Kg7 {[%clk 0:01:37.8]} 26. Nh4 {[%clk 0:01:22.5]}
26... Nb3 {[%clk 0:01:18.4]} 27. Rad1 {[%clk 0:01:15.5]} 27... Rxd1 {[%clk
0:01:14]} 28. Rxd1 {[%clk 0:01:15.1]} 28... Nd2+ {[%clk 0:01:14.9]} 29. Ke2
{[%clk 0:01:04]} 29... Nxe4 {[%clk 0:00:32.2]} 30. Nf5+ {[%clk 0:01:03.7]} 30...
Kg6 {[%clk 0:00:31.8]} 31. Nde7+ {[%clk 0:01:01.6]} 31... Rxe7 {[%clk
0:00:30.4]} 32. Nxe7+ {[%clk 0:01:01.8]} 32... Kg5 {[%clk 0:00:31.3]} 33. f3
{[%clk 0:00:58.2]} 1-0

[Event "*** SCC Grand Prix: Titled Tuesday Blitz"]
[Site "Chess.com"]
[Date "2020.07.14"]
[Round "2"]
[White "Agibileg"]
[Black "andrzej"]
[Result "1-0"]
[WhiteElo "2433"]
[BlackElo "2202"]
[TimeControl "180+1"]
[EndTime "10:16:39 PDT"]
[Termination "Agibileg won on time"]

1. d4 {[%clk 0:03:00.9]} 1... Nf6 {[%clk 0:02:59.5]} 2. c4 {[%clk 0:02:59.5]}
2... e6 {[%clk 0:02:59.8]} 3. Nc3 {[%clk 0:02:59.8]} 3... Bb4 {[%clk 0:03:00.5]}
4. a3 {[%clk 0:02:57.8]} 4... Bxc3+ {[%clk 0:02:59.8]} 5. bxc3 {[%clk
0:02:58.7]} 5... O-O {[%clk 0:02:46.1]} 6. f3 {[%clk 0:02:57.8]} 6... c5 {[%clk
0:02:45.2]} 7. e4 {[%clk 0:02:57]} 7... d6 {[%clk 0:02:43.1]} 8. Bd3 {[%clk
0:02:55.5]} 8... Qa5 {[%clk 0:02:37.9]} 9. Bd2 {[%clk 0:02:52.6]} 9... Nc6
{[%clk 0:02:38]} 10. Ne2 {[%clk 0:02:52.6]} 10... b6 {[%clk 0:02:37.5]} 11. O-O
{[%clk 0:02:52.7]} 11... Ba6 {[%clk 0:02:37.8]} 12. f4 {[%clk 0:02:53]} 12... d5
{[%clk 0:02:21.2]} 13. e5 {[%clk 0:02:41.6]} 13... Ne4 {[%clk 0:02:19.7]} 14.
cxd5 {[%clk 0:02:34]} 14... Bxd3 {[%clk 0:01:58.4]} 15. dxc6 {[%clk 0:02:33.2]}
15... cxd4 {[%clk 0:01:58.2]} 16. Nxd4 {[%clk 0:02:26.8]} 16... Bxf1 {[%clk
0:01:52.9]} 17. Kxf1 {[%clk 0:02:26.2]} 17... Rfd8 {[%clk 0:01:37.3]} 18. Be1
{[%clk 0:02:19.9]} 18... Nxc3 {[%clk 0:01:19.4]} 19. Qd3 {[%clk 0:02:19.1]}
19... Rxd4 {[%clk 0:00:50.6]} 20. Qxd4 {[%clk 0:02:14.3]} 20... Qb5+ {[%clk
0:00:47.5]} 21. Kf2 {[%clk 0:02:13.4]} 21... Qb2+ {[%clk 0:00:36]} 22. Kf3
{[%clk 0:02:05.1]} 22... Qe2+ {[%clk 0:00:28]} 23. Kg3 {[%clk 0:02:04.8]} 23...
Ne4+ {[%clk 0:00:28.3]} 24. Kh3 {[%clk 0:01:46.1]} 24... h5 {[%clk 0:00:24.5]}
25. Qd1 {[%clk 0:01:43.5]} 25... Qe3+ {[%clk 0:00:15.5]} 26. g3 {[%clk
0:01:43.5]} 26... Qg1 {[%clk 0:00:08.9]} 27. Qf3 {[%clk 0:01:28.1]} 27... Nc5
{[%clk 0:00:03.2]} 28. Rd1 {[%clk 0:01:25]} 28... Rc8 {[%clk 0:00:02.9]} 29. Bf2
{[%clk 0:01:22.2]} 1-0

[Event "*** SCC Grand Prix: Titled Tuesday Blitz"]
[Site "Chess.com"]
[Date "2020.07.14"]
[Round "2"]
[White "AniJak"]
[Black "Chessdreamer2020"]
[Result "0-1"]
[WhiteElo "2328"]
[BlackElo "2622"]
[TimeControl "180+1"]
[EndTime "10:16:42 PDT"]
[Termination "Chessdreamer2020 won by checkmate"]

1. e4 {[%clk 0:03:00.9]} 1... d6 {[%clk 0:02:58.3]} 2. d4 {[%clk 0:03:00.5]}
2... Nf6 {[%clk 0:02:57.2]} 3. Nc3 {[%clk 0:03:00.3]} 3... c6 {[%clk 0:02:55]}
4. g3 {[%clk 0:03:00.1]} 4... e5 {[%clk 0:02:51.9]} 5. Nge2 {[%clk 0:02:53.8]}
5... b5 {[%clk 0:02:49.8]} 6. a3 {[%clk 0:02:53.2]} 6... a5 {[%clk 0:02:49.7]}
7. Bg2 {[%clk 0:02:52.6]} 7... Ba6 {[%clk 0:02:49.7]} 8. dxe5 {[%clk 0:02:45.8]}
8... dxe5 {[%clk 0:02:49.3]} 9. Qxd8+ {[%clk 0:02:45.7]} 9... Kxd8 {[%clk
0:02:50.2]} 10. Bg5 {[%clk 0:02:45.4]} 10... Nd7 {[%clk 0:02:48.2]} 11. f4
{[%clk 0:02:31.6]} 11... Kc7 {[%clk 0:02:39.9]} 12. fxe5 {[%clk 0:02:16]} 12...
Nxe5 {[%clk 0:02:38.6]} 13. Bxf6 {[%clk 0:02:15.3]} 13... gxf6 {[%clk
0:02:38.1]} 14. Rf1 {[%clk 0:02:12.7]} 14... Be7 {[%clk 0:02:34.4]} 15. Rf5
{[%clk 0:02:03.6]} 15... b4 {[%clk 0:02:24.8]} 16. axb4 {[%clk 0:01:57.3]} 16...
axb4 {[%clk 0:02:25.7]} 17. Nd1 {[%clk 0:01:45.8]} 17... Rhd8 {[%clk 0:01:38.7]}
18. Nf2 {[%clk 0:01:37.1]} 18... c5 {[%clk 0:01:26.1]} 19. Rd1 {[%clk
0:01:32.7]} 19... Bb5 {[%clk 0:01:21.3]} 20. Rxd8 {[%clk 0:01:30.9]} 20... Bxd8
{[%clk 0:01:19.8]} 21. Nf4 {[%clk 0:01:29.7]} 21... Ra1+ {[%clk 0:01:18.6]} 22.
Nd1 {[%clk 0:01:24.8]} 22... b3 {[%clk 0:01:11.6]} 23. cxb3 {[%clk 0:01:12.4]}
23... Kd7 {[%clk 0:01:10.8]} 24. Nd5 {[%clk 0:01:06.8]} 24... Ba5+ {[%clk
0:01:10.1]} 25. b4 {[%clk 0:00:54.5]} 25... Bxb4+ {[%clk 0:01:04.1]} 26. Nc3
{[%clk 0:00:50.9]} 26... Bxc3+ {[%clk 0:01:00.8]} 27. bxc3 {[%clk 0:00:50.2]}
27... Ba4 {[%clk 0:01:00]} 28. Rxf6 {[%clk 0:00:50.4]} 28... Rxd1+ {[%clk
0:00:59.2]} 29. Ke2 {[%clk 0:00:50.7]} 29... Rg1 {[%clk 0:00:55.6]} 30. Bh3+
{[%clk 0:00:50.8]} 30... Ke7 {[%clk 0:00:55.9]} 31. Rf5 {[%clk 0:00:50.8]} 31...
f6 {[%clk 0:00:55]} 32. Rh5 {[%clk 0:00:50.3]} 32... Bb5+ {[%clk 0:00:54.3]} 33.
Kf2 {[%clk 0:00:48]} 33... Rc1 {[%clk 0:00:53.1]} 34. Rxh7+ {[%clk 0:00:47.9]}
34... Kf8 {[%clk 0:00:53]} 35. Rb7 {[%clk 0:00:45.5]} 35... Rc2+ {[%clk
0:00:52.1]} 36. Ke3 {[%clk 0:00:42.8]} 36... Rxc3+ {[%clk 0:00:51.7]} 37. Kf4
{[%clk 0:00:42]} 37... Rf3# {[%clk 0:00:50.8]} 0-1

[Event "*** SCC Grand Prix: Titled Tuesday Blitz"]
[Site "Chess.com"]
[Date "2020.07.14"]
[Round "2"]
[White "ClassyEl"]
[Black "GOGIEFF"]
[Result "0-1"]
[WhiteElo "2546"]
[BlackElo "2902"]
[TimeControl "180+1"]
[EndTime "10:16:43 PDT"]
[Termination "GOGIEFF won by resignation"]

1. d4 {[%clk 0:03:00.9]} 1... Nf6 {[%clk 0:02:55.9]} 2. Bg5 {[%clk 0:03:00.7]}
2... e6 {[%clk 0:02:55.1]} 3. Nd2 {[%clk 0:03:00.2]} 3... c5 {[%clk 0:02:53.4]}
4. e4 {[%clk 0:02:59.8]} 4... h6 {[%clk 0:02:50.7]} 5. Bh4 {[%clk 0:02:59.8]}
5... cxd4 {[%clk 0:02:50]} 6. e5 {[%clk 0:03:00]} 6... g5 {[%clk 0:02:49.8]} 7.
Bg3 {[%clk 0:03:00.4]} 7... Nd5 {[%clk 0:02:47.5]} 8. h4 {[%clk 0:03:00.2]} 8...
Nc6 {[%clk 0:02:28.2]} 9. hxg5 {[%clk 0:02:55]} 9... Qxg5 {[%clk 0:02:25.4]} 10.
Bc4 {[%clk 0:01:53]} 10... Ne3 {[%clk 0:02:17.1]} 11. Ngf3 {[%clk 0:01:02.8]}
11... Qg6 {[%clk 0:02:09]} 12. Bd3 {[%clk 0:00:43.1]} 12... Nxd1 {[%clk
0:01:58.6]} 13. Bxg6 {[%clk 0:00:43.1]} 13... Nxb2 {[%clk 0:01:59.5]} 14. Bh5
{[%clk 0:00:41]} 14... Bg7 {[%clk 0:01:35]} 15. Ne4 {[%clk 0:00:38]} 15... Nc4
{[%clk 0:01:24.7]} 16. O-O-O {[%clk 0:00:34]} 16... N4xe5 {[%clk 0:01:20]} 17.
Nxe5 {[%clk 0:00:22.1]} 17... Nxe5 {[%clk 0:01:20.9]} 18. Nd6+ {[%clk 0:00:20]}
18... Ke7 {[%clk 0:01:15.1]} 19. Bxe5 {[%clk 0:00:19.9]} 19... Bxe5 {[%clk
0:01:14.3]} 20. Nxf7 {[%clk 0:00:20]} 20... Bf4+ {[%clk 0:01:11.6]} 21. Kb1
{[%clk 0:00:20.2]} 21... Rf8 {[%clk 0:01:03]} 22. Rxd4 {[%clk 0:00:11.6]} 22...
e5 {[%clk 0:01:00.3]} 23. Nxe5 {[%clk 0:00:09]} 23... Bxe5 {[%clk 0:00:58.7]}
24. Re4 {[%clk 0:00:09]} 24... d6 {[%clk 0:00:58.1]} 0-1

[Event "*** SCC Grand Prix: Titled Tuesday Blitz"]
[Site "Chess.com"]
[Date "2020.07.14"]
[Round "2"]
[White "BJthechessgod"]
[Black "Evgeny81"]
[Result "0-1"]
[WhiteElo "2317"]
[BlackElo "2747"]
[TimeControl "180+1"]
[EndTime "10:16:43 PDT"]
[Termination "Evgeny81 won by resignation"]

1. d4 {[%clk 0:03:00.9]} 1... Nf6 {[%clk 0:02:59.4]} 2. c4 {[%clk 0:03:00.4]}
2... e5 {[%clk 0:02:59.9]} 3. dxe5 {[%clk 0:02:59.1]} 3... Ne4 {[%clk
0:03:00.5]} 4. Nd2 {[%clk 0:02:56.2]} 4... Nc5 {[%clk 0:02:59.7]} 5. Ngf3 {[%clk
0:02:52.1]} 5... Nc6 {[%clk 0:02:59.1]} 6. e3 {[%clk 0:02:51.8]} 6... d6 {[%clk
0:02:58]} 7. exd6 {[%clk 0:02:50.3]} 7... Bxd6 {[%clk 0:02:57.5]} 8. Be2 {[%clk
0:02:34.7]} 8... Bf5 {[%clk 0:02:57.5]} 9. Nb3 {[%clk 0:02:33.4]} 9... Qe7
{[%clk 0:02:52.9]} 10. Nxc5 {[%clk 0:02:32.1]} 10... Bxc5 {[%clk 0:02:52.6]} 11.
O-O {[%clk 0:02:32]} 11... Bd6 {[%clk 0:02:46.5]} 12. a3 {[%clk 0:02:24.9]}
12... O-O-O {[%clk 0:02:46]} 13. Qa4 {[%clk 0:02:20.6]} 13... g5 {[%clk
0:02:45.3]} 14. b4 {[%clk 0:01:59.9]} 14... g4 {[%clk 0:02:41.5]} 15. c5 {[%clk
0:01:35]} 15... gxf3 {[%clk 0:02:18.9]} 16. cxd6 {[%clk 0:01:34.5]} 16... Qe5
{[%clk 0:02:06.4]} 17. Bxf3 {[%clk 0:01:30.4]} 17... Qxa1 {[%clk 0:02:05.5]} 18.
dxc7 {[%clk 0:01:00.3]} 18... Kxc7 {[%clk 0:01:48.3]} 19. b5 {[%clk 0:00:59.4]}
19... Ne5 {[%clk 0:01:36]} 20. Qf4 {[%clk 0:00:15.3]} 20... Bd3 {[%clk
0:01:22.4]} 21. Rd1 {[%clk 0:00:08.4]} 21... Rhe8 {[%clk 0:01:05.6]} 22. Bd2
{[%clk 0:00:08.2]} 22... Qxa3 {[%clk 0:00:59.7]} 23. Rc1+ {[%clk 0:00:07.9]}
23... Kb8 {[%clk 0:01:00.2]} 24. Bc3 {[%clk 0:00:03.2]} 24... Qxc1+ {[%clk
0:00:59.4]} 0-1

[Event "*** SCC Grand Prix: Titled Tuesday Blitz"]
[Site "Chess.com"]
[Date "2020.07.14"]
[Round "2"]
[White "Jospem"]
[Black "UKR_Master"]
[Result "1-0"]
[WhiteElo "2805"]
[BlackElo "2325"]
[TimeControl "180+1"]
[EndTime "10:16:45 PDT"]
[Termination "Jospem won by resignation"]

1. e4 {[%clk 0:03:00.1]} 1... c5 {[%clk 0:03:00]} 2. Nf3 {[%clk 0:02:46.4]} 2...
d6 {[%clk 0:02:59.2]} 3. d4 {[%clk 0:02:45.1]} 3... cxd4 {[%clk 0:03:00.1]} 4.
Nxd4 {[%clk 0:02:45.9]} 4... Nf6 {[%clk 0:03:00.4]} 5. Nc3 {[%clk 0:02:46.2]}
5... e5 {[%clk 0:03:00.8]} 6. Bb5+ {[%clk 0:02:45.1]} 6... Bd7 {[%clk
0:03:00.8]} 7. Bxd7+ {[%clk 0:02:42.6]} 7... Qxd7 {[%clk 0:03:01.7]} 8. Nde2
{[%clk 0:02:42.7]} 8... Qc6 {[%clk 0:03:00.6]} 9. Ng3 {[%clk 0:02:29.4]} 9...
Nbd7 {[%clk 0:02:51.4]} 10. O-O {[%clk 0:02:27.9]} 10... b5 {[%clk 0:02:47.5]}
11. a3 {[%clk 0:02:24.3]} 11... Rd8 {[%clk 0:02:41.2]} 12. Qf3 {[%clk
0:02:23.8]} 12... h6 {[%clk 0:02:07.6]} 13. Be3 {[%clk 0:02:20.8]} 13... a6
{[%clk 0:02:04.5]} 14. Rad1 {[%clk 0:02:20.3]} 14... g6 {[%clk 0:01:59.3]} 15.
h4 {[%clk 0:02:08.6]} 15... Bg7 {[%clk 0:01:49.6]} 16. h5 {[%clk 0:02:08.3]}
16... O-O {[%clk 0:01:48.3]} 17. Rd2 {[%clk 0:02:04.5]} 17... Kh7 {[%clk
0:01:41.7]} 18. Rfd1 {[%clk 0:02:03.4]} 18... Nb6 {[%clk 0:01:41.2]} 19. Bxb6
{[%clk 0:01:55.1]} 19... Qxb6 {[%clk 0:01:41.2]} 20. Nd5 {[%clk 0:01:46.9]}
20... Nxd5 {[%clk 0:01:41]} 21. Rxd5 {[%clk 0:01:47.8]} 21... Qc6 {[%clk
0:01:36.5]} 22. c3 {[%clk 0:01:46.5]} 22... Rd7 {[%clk 0:01:27.9]} 23. Qg4
{[%clk 0:01:40.2]} 23... Rb8 {[%clk 0:01:15.9]} 24. Nf1 {[%clk 0:01:35.6]} 24...
a5 {[%clk 0:01:14]} 25. Ne3 {[%clk 0:01:28.1]} 25... b4 {[%clk 0:01:08.4]} 26.
Rxa5 {[%clk 0:01:24.6]} 26... bxc3 {[%clk 0:01:05.4]} 27. bxc3 {[%clk
0:01:23.5]} 27... Rdb7 {[%clk 0:00:57.2]} 28. Rad5 {[%clk 0:01:02.9]} 28... Bf8
{[%clk 0:00:46.5]} 29. R5d3 {[%clk 0:00:56.4]} 29... Rb3 {[%clk 0:00:45.7]} 30.
Nd5 {[%clk 0:00:55.9]} 30... Rxa3 {[%clk 0:00:44]} 31. Rf3 {[%clk 0:00:54.4]}
31... Rb7 {[%clk 0:00:43]} 32. hxg6+ {[%clk 0:00:44.7]} 32... fxg6 {[%clk
0:00:42.6]} 33. Rxf8 {[%clk 0:00:41.2]} 1-0

[Event "*** SCC Grand Prix: Titled Tuesday Blitz"]
[Site "Chess.com"]
[Date "2020.07.14"]
[Round "2"]
[White "amatatanav"]
[Black "ENajer77"]
[Result "0-1"]
[WhiteElo "2472"]
[BlackElo "2709"]
[TimeControl "180+1"]
[EndTime "10:16:46 PDT"]
[Termination "ENajer77 won by resignation"]

1. e4 {[%clk 0:03:00.9]} 1... c6 {[%clk 0:02:31.8]} 2. Nc3 {[%clk 0:03:00.3]}
2... d5 {[%clk 0:02:31.7]} 3. Nf3 {[%clk 0:03:00.7]} 3... Bg4 {[%clk 0:02:28.8]}
4. d4 {[%clk 0:02:59.8]} 4... e6 {[%clk 0:02:27.1]} 5. Bd3 {[%clk 0:02:59.5]}
5... Be7 {[%clk 0:02:18.1]} 6. O-O {[%clk 0:02:57]} 6... Nf6 {[%clk 0:02:15.9]}
7. Re1 {[%clk 0:02:50.1]} 7... O-O {[%clk 0:02:13.5]} 8. e5 {[%clk 0:01:33.7]}
8... Nfd7 {[%clk 0:02:11.2]} 9. h3 {[%clk 0:01:33.4]} 9... Bh5 {[%clk
0:01:56.1]} 10. g4 {[%clk 0:01:32]} 10... Bg6 {[%clk 0:01:55.9]} 11. Bxg6 {[%clk
0:01:06.8]} 11... fxg6 {[%clk 0:01:53.5]} 12. Kg2 {[%clk 0:00:56.2]} 12... c5
{[%clk 0:01:51.5]} 13. Ne2 {[%clk 0:00:49.5]} 13... Nc6 {[%clk 0:01:34.9]} 14.
c3 {[%clk 0:00:49.5]} 14... Rf7 {[%clk 0:01:34]} 15. Nf4 {[%clk 0:00:38.3]}
15... Nf8 {[%clk 0:01:33.3]} 16. Be3 {[%clk 0:00:34.3]} 16... g5 {[%clk
0:01:27.1]} 17. Ne2 {[%clk 0:00:28.5]} 17... Ng6 {[%clk 0:01:22.7]} 18. Ng3
{[%clk 0:00:19]} 18... Qb6 {[%clk 0:01:11.2]} 19. dxc5 {[%clk 0:00:13.7]} 19...
Qxb2 {[%clk 0:01:02.6]} 20. Nxg5 {[%clk 0:00:10]} 20... Bxg5 {[%clk 0:01:01.1]}
21. Re2 {[%clk 0:00:09.2]} 21... Nh4+ {[%clk 0:00:54.9]} 22. Kh1 {[%clk
0:00:06.3]} 22... Qxc3 {[%clk 0:00:54.3]} 23. Bxg5 {[%clk 0:00:05.9]} 23... Qf3+
{[%clk 0:00:53.5]} 0-1

[Event "*** SCC Grand Prix: Titled Tuesday Blitz"]
[Site "Chess.com"]
[Date "2020.07.14"]
[Round "2"]
[White "crazychessbr"]
[Black "MFguimaraes"]
[Result "0-1"]
[WhiteElo "2062"]
[BlackElo "2374"]
[TimeControl "180+1"]
[EndTime "10:16:46 PDT"]
[Termination "MFguimaraes won by resignation"]

1. e4 {[%clk 0:03:00.9]} 1... e5 {[%clk 0:02:04.3]} 2. Nf3 {[%clk 0:02:59.7]}
2... Nc6 {[%clk 0:02:02.5]} 3. Bb5 {[%clk 0:02:59.1]} 3... Nf6 {[%clk
0:02:01.7]} 4. d3 {[%clk 0:02:59]} 4... Bc5 {[%clk 0:02:00.7]} 5. O-O {[%clk
0:02:58.4]} 5... Nd4 {[%clk 0:01:59.1]} 6. Nxd4 {[%clk 0:02:54.6]} 6... Bxd4
{[%clk 0:02:00]} 7. c3 {[%clk 0:02:54.2]} 7... Bb6 {[%clk 0:01:59.9]} 8. Nd2
{[%clk 0:02:49.3]} 8... c6 {[%clk 0:01:59.4]} 9. Ba4 {[%clk 0:02:46.5]} 9... O-O
{[%clk 0:01:59.2]} 10. Bb3 {[%clk 0:02:45.4]} 10... d5 {[%clk 0:01:59.1]} 11. h3
{[%clk 0:02:36.8]} 11... h6 {[%clk 0:01:52.9]} 12. Re1 {[%clk 0:02:35]} 12...
Re8 {[%clk 0:01:52.5]} 13. Nf1 {[%clk 0:02:22.6]} 13... dxe4 {[%clk 0:01:50]}
14. dxe4 {[%clk 0:02:22.4]} 14... Qxd1 {[%clk 0:01:50.1]} 15. Bxd1 {[%clk
0:02:22.4]} 15... Be6 {[%clk 0:01:49.9]} 16. Ng3 {[%clk 0:02:19.9]} 16... Nd7
{[%clk 0:01:50]} 17. Nf5 {[%clk 0:02:17.2]} 17... Bxf5 {[%clk 0:01:45.5]} 18.
exf5 {[%clk 0:02:18.1]} 18... Nc5 {[%clk 0:01:44.4]} 19. Bc2 {[%clk 0:02:16.5]}
19... Rad8 {[%clk 0:01:43.4]} 20. f6 {[%clk 0:02:08.4]} 20... Nd3 {[%clk
0:01:41]} 21. Bxd3 {[%clk 0:01:59.5]} 21... Rxd3 {[%clk 0:01:41.9]} 22. fxg7
{[%clk 0:01:59]} 22... Kxg7 {[%clk 0:01:42.8]} 23. Kf1 {[%clk 0:01:43.3]} 23...
f5 {[%clk 0:01:40.6]} 24. Ke2 {[%clk 0:01:39.8]} 24... e4 {[%clk 0:01:37.6]} 25.
Bf4 {[%clk 0:01:34.8]} 25... Red8 {[%clk 0:01:34.7]} 26. Rad1 {[%clk 0:01:33.5]}
26... h5 {[%clk 0:01:32.3]} 27. Rxd3 {[%clk 0:01:15.5]} 27... Rxd3 {[%clk
0:01:31.5]} 28. Rd1 {[%clk 0:01:13.8]} 28... Rxd1 {[%clk 0:01:31.3]} 29. Kxd1
{[%clk 0:01:13.8]} 29... Bxf2 {[%clk 0:01:32]} 30. Ke2 {[%clk 0:01:11.8]} 30...
Bc5 {[%clk 0:01:31.4]} 31. b4 {[%clk 0:01:10.7]} 31... Be7 {[%clk 0:01:29.5]}
32. Be3 {[%clk 0:01:10.1]} 32... Bf6 {[%clk 0:01:29.3]} 33. Kd2 {[%clk
0:01:05.8]} 33... Kf7 {[%clk 0:01:29]} 34. Bxa7 {[%clk 0:01:05.6]} 34... Ke6
{[%clk 0:01:28.8]} 35. c4 {[%clk 0:00:51.9]} 35... f4 {[%clk 0:01:27.7]} 36. Bb8
{[%clk 0:00:45.8]} 36... Be5 {[%clk 0:01:23.5]} 37. Bxe5 {[%clk 0:00:34.7]}
37... Kxe5 {[%clk 0:01:24.4]} 38. Kc3 {[%clk 0:00:28.6]} 38... f3 {[%clk
0:01:21.8]} 39. gxf3 {[%clk 0:00:23.8]} 39... exf3 {[%clk 0:01:22.7]} 40. Kd3
{[%clk 0:00:24.1]} 40... Kf4 {[%clk 0:01:22.8]} 41. Kd2 {[%clk 0:00:23.9]} 41...
Kg3 {[%clk 0:01:22.2]} 42. Ke1 {[%clk 0:00:24]} 42... Kg2 {[%clk 0:01:22.4]} 0-1

[Event "*** SCC Grand Prix: Titled Tuesday Blitz"]
[Site "Chess.com"]
[Date "2020.07.14"]
[Round "2"]
[White "GeorgMeier"]
[Black "Herracek"]
[Result "1-0"]
[WhiteElo "2965"]
[BlackElo "2565"]
[TimeControl "180+1"]
[EndTime "10:16:47 PDT"]
[Termination "GeorgMeier won by checkmate"]

1. Nf3 {[%clk 0:02:57.4]} 1... c5 {[%clk 0:02:59.9]} 2. e4 {[%clk 0:02:57.1]}
2... Nc6 {[%clk 0:03:00.4]} 3. Bb5 {[%clk 0:02:57.6]} 3... g6 {[%clk 0:03:00.8]}
4. Bxc6 {[%clk 0:02:57.1]} 4... dxc6 {[%clk 0:03:01.7]} 5. d3 {[%clk 0:02:56]}
5... Bg7 {[%clk 0:03:02.1]} 6. h3 {[%clk 0:02:56.3]} 6... Nf6 {[%clk 0:03:02.4]}
7. Nc3 {[%clk 0:02:56.9]} 7... O-O {[%clk 0:03:02.1]} 8. Be3 {[%clk 0:02:57.5]}
8... b6 {[%clk 0:03:00.9]} 9. Qd2 {[%clk 0:02:57.6]} 9... e5 {[%clk 0:03:00.1]}
10. Bh6 {[%clk 0:02:51.3]} 10... Qd6 {[%clk 0:03:00.6]} 11. O-O {[%clk
0:02:33.9]} 11... Nh5 {[%clk 0:02:58.5]} 12. Ne2 {[%clk 0:02:32.1]} 12... f6
{[%clk 0:02:42.7]} 13. a3 {[%clk 0:02:20]} 13... Ba6 {[%clk 0:02:39.3]} 14. Rfe1
{[%clk 0:01:38]} 14... Rad8 {[%clk 0:02:34.3]} 15. Bxg7 {[%clk 0:01:32.8]} 15...
Nxg7 {[%clk 0:02:33.5]} 16. b4 {[%clk 0:01:31.1]} 16... c4 {[%clk 0:02:32.8]}
17. d4 {[%clk 0:01:31.4]} 17... exd4 {[%clk 0:02:28.4]} 18. Qxd4 {[%clk
0:01:29.3]} 18... Ne6 {[%clk 0:02:17.1]} 19. Qc3 {[%clk 0:01:16.8]} 19... c5
{[%clk 0:02:16.7]} 20. Rad1 {[%clk 0:00:55.9]} 20... Qxd1 {[%clk 0:02:12.7]} 21.
Rxd1 {[%clk 0:00:55.9]} 21... Rxd1+ {[%clk 0:02:13.2]} 22. Kh2 {[%clk
0:00:56.6]} 22... Kf7 {[%clk 0:02:04.5]} 23. e5 {[%clk 0:00:50]} 23... f5 {[%clk
0:02:04.5]} 24. bxc5 {[%clk 0:00:50.1]} 24... Nxc5 {[%clk 0:01:45]} 25. Nf4
{[%clk 0:00:45.3]} 25... Ne4 {[%clk 0:01:16.2]} 26. e6+ {[%clk 0:00:44.8]} 26...
Ke8 {[%clk 0:01:13.9]} 27. Qe5 {[%clk 0:00:40.6]} 27... Bc8 {[%clk 0:01:01.2]}
28. Qc7 {[%clk 0:00:35.9]} 28... Nd6 {[%clk 0:00:42.8]} 29. Ne5 {[%clk
0:00:31.2]} 29... Bb7 {[%clk 0:00:37.2]} 30. Qd7# {[%clk 0:00:30.1]} 1-0

[Event "*** SCC Grand Prix: Titled Tuesday Blitz"]
[Site "Chess.com"]
[Date "2020.07.14"]
[Round "2"]
[White "Willychess95"]
[Black "BillieKimbah"]
[Result "0-1"]
[WhiteElo "2541"]
[BlackElo "2894"]
[TimeControl "180+1"]
[EndTime "10:16:48 PDT"]
[Termination "BillieKimbah won by resignation"]

1. e4 {[%clk 0:03:00]} 1... c5 {[%clk 0:03:00]} 2. Nf3 {[%clk 0:02:56.7]} 2...
e6 {[%clk 0:03:00.3]} 3. d4 {[%clk 0:02:55]} 3... cxd4 {[%clk 0:03:01.2]} 4.
Nxd4 {[%clk 0:02:55.8]} 4... Nc6 {[%clk 0:03:01.3]} 5. Nc3 {[%clk 0:02:55.8]}
5... Qc7 {[%clk 0:03:01.7]} 6. g4 {[%clk 0:02:55.3]} 6... a6 {[%clk 0:03:01.1]}
7. Be3 {[%clk 0:02:51.6]} 7... b5 {[%clk 0:02:59.6]} 8. Nxc6 {[%clk 0:02:50.7]}
8... Qxc6 {[%clk 0:02:59.5]} 9. Bg2 {[%clk 0:02:49.5]} 9... Bb7 {[%clk
0:02:58.8]} 10. a3 {[%clk 0:02:47.4]} 10... Ne7 {[%clk 0:02:56]} 11. Qd2 {[%clk
0:02:42.9]} 11... Ng6 {[%clk 0:02:55.5]} 12. f4 {[%clk 0:02:24.3]} 12... Nh4
{[%clk 0:02:48.9]} 13. O-O-O {[%clk 0:02:21.6]} 13... b4 {[%clk 0:02:45.4]} 14.
axb4 {[%clk 0:02:21.1]} 14... Bxb4 {[%clk 0:02:46.3]} 15. Bd4 {[%clk 0:02:21.3]}
15... Nxg2 {[%clk 0:02:41.7]} 16. Qxg2 {[%clk 0:02:22.2]} 16... O-O {[%clk
0:02:40.5]} 17. Rhe1 {[%clk 0:02:17]} 17... a5 {[%clk 0:02:39.7]} 18. Qe2 {[%clk
0:02:02.8]} 18... Ba6 {[%clk 0:02:10.7]} 19. Qe3 {[%clk 0:01:58.3]} 19... a4
{[%clk 0:02:10.2]} 20. Bxg7 {[%clk 0:01:45.2]} 20... a3 {[%clk 0:01:28.9]} 21.
Bf6 {[%clk 0:01:27.2]} 21... axb2+ {[%clk 0:01:19.6]} 22. Kb1 {[%clk 0:01:24.1]}
22... Bc5 {[%clk 0:00:59.9]} 23. Bd4 {[%clk 0:00:40.2]} 23... Bc4 {[%clk
0:00:59.5]} 24. Bxc5 {[%clk 0:00:29.8]} 24... Rfb8 {[%clk 0:00:58.7]} 25. Ba7
{[%clk 0:00:27.1]} 25... Qa6 {[%clk 0:00:55.5]} 0-1